Cogmind - Beta 11 X10 @@@ ROGUE MODE // 2022.02.17 @ 11:46:14 Player: maxwell Result: Self-destructed Performance ------------- Evolutions (1) 500 Regions Visited (6) 1200 Robots Destroyed (79) 395 Value Destroyed (1630) 1630 Prototype IDs (7) 140 Alien Tech Used (0) 0 Bonus (-43) -43 TOTAL SCORE: 3822 Bonus ------- Follower Combat Kills 25 Friendly Fire -68 Cogmind --------- Core Integrity 101/400 Matter 300/300 Energy 140/140 System Corruption 0% Temperature Cool (0) Movement Rolling (130) Ox2 Location -8/Mines Parts ------- > --- POWER (1) -------- Light Deuterium Engine > --- PROPULSION (2) --- Compact Wheel Compact Wheel > --- UTILITY (4) ------ Heat Sink Huge Storage Unit Improved Targeting Computer Light Armor Plating > --- WEAPON (2) ------- Small Laser Ion Cannon > --- INVENTORY (25) --- Light Angular Momentum Engine Wheel Compact Wheel Heat Sink Huge Storage Unit High-capacity Matter Pod (200) Signal Interpreter Improved Targeting Computer Light Armor Plating System Shield Improved Trap Extractor (0/6) Heavy EM Pulse Gun Beam Rifle Beamcaster Particle Cannon Advanced Beam Cannon Ion Cannon Ion Cannon Plasma Cannon Proton Missile Launcher Improved Grenade Launcher Improved Grenade Launcher Remote Datajack Powered Hammer Peak State ------------ > --- POWER ------------ Ion Engine > --- PROPULSION ------- Wheel Wheel > --- UTILITY ---------- Huge Storage Unit Machine Analyzer Improved Terrain Scanner Improved Terrain Scan Processor > --- WEAPON ----------- Medium Laser Ion Cannon > --- INVENTORY -------- Ion Engine Improved Ion Engine Light Deuterium Engine Light Treads Wheel Wheel Heat Sink Heat Sink Huge Storage Unit Signal Interpreter Light Armor Plating System Shield EM Shotgun Small Laser Beam Rifle Ion Cannon Ion Cannon Ion Cannon Grenade Launcher Improved Grenade Launcher Improved Grenade Launcher Heavy Flail [Rating: 21] Favorites ----------- Power Ion Engine Engine Ion Engine Propulsion Light Treads Treads Light Treads Wheel Wheel Utility Huge Storage Unit Device Improved Terrain Scanner Storage Huge Storage Unit Processor Machine Analyzer Protection Weapon Shielding Weapon Light Cannon Energy Gun Small Laser Energy Cannon Ion Cannon Ballistic Gun Assault Rifle Ballistic Cannon Light Cannon Launcher Grenade Launcher Impact Weapon Heavy Flail Build | -11 -10 -10 -9 -9 -9 -8 ------- Run | Scr Mat Min Mat Min Exi Min Slots Evolved 2 | . . . 2 . . . Power . | . . . . . . . Propulsion . | . . . . . . . Utility 2 | . . . 2 . . . Weapon . | . . . . . . . Parts Attached 44 | 6 6 9 22 . 1 . Power 4 | 1 . . 2 . 1 . Engine 4 | 1 . . 2 . 1 . Core . | . . . . . . . Reactor . | . . . . . . . Propulsion 12 | 2 . 3 7 . . . Treads 4 | 2 . 1 1 . . . Leg . | . . . . . . . Wheel 8 | . . 2 6 . . . Hover . | . . . . . . . Flight . | . . . . . . . Utility 9 | 1 2 1 5 . . . Device 2 | . . 1 1 . . . Storage 2 | 1 1 . . . . . Processor 3 | . . . 3 . . . Hackware . | . . . . . . . Protection 2 | . 1 . 1 . . . Artifact . | . . . . . . . Weapon 19 | 2 4 5 8 . . . Energy Gun 4 | . . 2 2 . . . Energy Cannon 3 | . . . 3 . . . Ballistic Gun 5 | 2 1 2 . . . . Ballistic Cannon 1 | . 1 . . . . . Launcher 4 | . 2 . 2 . . . Special Weapon . | . . . . . . . Impact Weapon 2 | . . 1 1 . . . Slashing Weapon . | . . . . . . . Piercing Weapon . | . . . . . . . Special Melee Weapon . | . . . . . . . Unidentified Prototypes . | . . . . . . . Parts Lost 14 | . . 2 12 . . . Power 2 | . . . 2 . . . Propulsion 7 | . . 1 6 . . . Utility 2 | . . 1 1 . . . Weapon 3 | . . . 3 . . . Highest Loss Streak 4 | . . 2 4 . . . To Critical Strikes . | . . . . . . . Average Slot Usage (%) 96 | . 99 98 91 100 100 100 Engine 12 | . 14 14 10 11 11 11 Treads 17 | . 28 24 2 . . . Wheel 7 | . . 3 14 22 22 22 Device 8 | . . 10 9 11 11 11 Storage 12 | . 14 14 11 11 11 11 Processor 5 | . . . 18 11 11 11 Protection 5 | . 13 1 2 11 11 11 Energy Gun 5 | . . 3 11 11 11 11 Energy Cannon 3 | . . . 8 11 11 11 Ballistic Gun 4 | . 14 1 . . . . Ballistic Cannon 7 | . 9 12 . . . . Launcher 1 | . 4 1 . . . . Impact Weapon 3 | . . 8 . . . . Naked Turns . | . . . . . . . Heaviest Build 98 | 14 92 92 98 96 96 96 Greatest Support 40 | 40 40 40 32 32 32 32 Greatest Overweight (x) 9 | 1 2 4 9 2 2 2 Average Overweight (x) 2 | . . 2 6 2 2 2 Largest Inventory Capacity 25 | 8 25 25 25 25 25 25 Average Capacity 21 | 7 9 25 25 25 25 25 Most Carried 25 | . 11 24 25 25 25 24 Average Carried 17 | . 7 18 20 24 24 24 Final Capacity 25 | 8 25 25 25 25 25 25 Final Carried 25 | . 11 24 19 25 24 24 Class Distribution -------------------- 67% | Mutant 17% | Skirmisher 14% | Scavenger-Mutant Dominant Class ---------------- Mutant | -10/Materials Mutant | -10/Mines Skirmisher | -9/Materials Scavenger-Mutant | -9/Mines Scavenger-Mutant | -9/Exiles Scavenger-Mutant | -8/Mines Resources | -11 -10 -10 -9 -9 -9 -8 ----------- Run | Scr Mat Min Mat Min Exi Min Matter Collected 1169 | 198 327 394 240 . . 10 Remotely . | . . . . . . . Salvage Created 2171 | . 520 419 1232 . . . Parts 154 | . 29 41 84 . . . Haulers Intercepted 2 | . 1 . 1 . . . Recyclers Shooed 2 | . . . 2 . . . Parts Field Recycled . | . . . . . . . Retrieved Matter . | . . . . . . . Parts Self-Destructed . | . . . . . . . Prevented . | . . . . . . . Kills | -11 -10 -10 -9 -9 -9 -8 ------- Run | Scr Mat Min Mat Min Exi Min Combat Hostiles Destroyed 47 | . 16 7 24 . . . Melee 1 | . . 1 . . . . Guns 18 | . 6 1 11 . . . Cannons 8 | . 4 . 4 . . . AOE 17 | . 6 4 7 . . . Classes Destroyed 10 | . 5 3 2 . . . Worker 11 | . 2 7 2 . . . Builder 7 | . . 4 3 . . . Tunneler 3 | . . 3 . . . . Hauler 2 | . 1 . 1 . . . Recycler 4 | . . 1 3 . . . Watcher 5 | . 3 . 2 . . . Swarmer 13 | . 2 3 8 . . . Grunt 26 | . 14 4 8 . . . Duelist 1 | . . . 1 . . . Sentry 7 | . . . 7 . . . Best Kill Streak 7 | . 5 5 7 . . . Combat Bots Only 6 | . 3 3 6 . . . Max Kills in Single Turn 3 | . 2 3 3 . . . Gunslinging . | . . . . . . . Exploded 3 | . 1 3 3 . . . Melee 1 | . . 1 . . . . Uniques/NPCs Destroyed . | . . . . . . . Combat | -11 -10 -10 -9 -9 -9 -8 -------- Run | Scr Mat Min Mat Min Exi Min Damage Taken 1739 | . 505 208 975 51 . . Core 395 | . 81 15 285 14 . . Absorbed by Shields . | . . . . . . . Redirected to Shielding 50 | . 40 10 . . . . Core Remaining (%) 80 | 100 . 61 . . . . Volleys Fired 172 | . 56 25 88 3 . . Largest 2 | . 2 2 2 2 . . Hottest 110 | . 55 90 110 100 . . Shots Fired 291 | . 97 43 145 6 . . Gun 156 | . 50 33 70 3 . . Cannon 108 | . 32 3 70 3 . . Launcher 27 | . 15 7 5 . . . Special . | . . . . . . . Kinetic 88 | . 82 6 . . . . Thermal 141 | . . 30 105 6 . . Explosive 27 | . 15 7 5 . . . Electromagnetic 35 | . . . 35 . . . Robot Hit Streak 15 | . 4 7 15 8 . . Robot Miss Streak 9 | . 3 3 9 1 . . Penetration Max . | . . . . . . . Secondary Targets . | . . . . . . . Shots Hit Robots 185 | . 53 33 95 4 . . Core Hits 112 | . 37 23 51 1 . . Critical Kills 2 | . . . 2 . . . Critical Parts Destroyed 2 | . 1 1 . . . . Critical Strikes 6 | . 2 2 2 . . . Burn 1 | . . 1 . . . . Meltdown 2 | . . . 2 . . . Destroy 1 | . 1 . . . . . Blast 1 | . 1 . . . . . Smash 1 | . . 1 . . . . Melee Attacks 8 | . . 7 1 . . . Impact 8 | . . 7 1 . . . Slashing . | . . . . . . . Piercing . | . . . . . . . Sneak Attacks 4 | . . 4 . . . . Combat Hostiles . | . . . . . . . Follow-up Attacks . | . . . . . . . Damage Inflicted 5053 | . 1322 1558 2105 68 . . Guns 1375 | . 335 275 743 22 . . Cannons 1338 | . 334 19 939 46 . . Explosions 1505 | . 653 429 423 . . . Melee 835 | . . 835 . . . . Ramming . | . . . . . . . Kinetic 715 | . 669 46 . . . . Thermal 1559 | . . 248 1243 68 . . Explosive 1505 | . 653 429 423 . . . Electromagnetic 439 | . . . 439 . . . Impact 835 | . . 835 . . . . Slashing . | . . . . . . . Piercing . | . . . . . . . Highest Corruption . | . . . . . . . Average Corruption . | . . . . . . . Corruption Purged . | . . . . . . . Corruption Blocked . | . . . . . . . Overload Shots . | . . . . . . . Overflow Damage 596 | . 10 554 32 . . . Projectiles 22 | . . . 22 . . . Explosions 46 | . 10 26 10 . . . Melee 528 | . . 528 . . . . Knockbacks 5 | . 3 2 . . . . Impact 1 | . . 1 . . . . Kinetic 4 | . 3 1 . . . . Secondary . | . . . . . . . Self-Inflicted Damage 76 | . 21 55 . . . . Shots 4 | . 2 2 . . . . Rammed . | . . . . . . . Targets Rammed . | . . . . . . . Kicked . | . . . . . . . Crushed . | . . . . . . . Highest Temperature 316 | . 15 160 316 27 . . Average Temperature 72 | . 7 45 95 15 . . Received Heat Transfer 630 | . 243 78 309 . . . Effects 5 | . . . 5 . . . Shutdowns 1 | . . . 1 . . . Energy Bleed 1 | . . . 1 . . . Interference 3 | . . . 3 . . . Siege Activations . | . . . . . . . Robots Corrupted . | . . . . . . . Combat Hostiles . | . . . . . . . Parts Fried 5 | . . 2 3 . . . Impact Corruptions 9 | . . 9 . . . . Robots Melted 2 | . . . 2 . . . Combat Hostiles 2 | . . . 2 . . . Parts Melted 7 | . . 1 6 . . . Heat Transferred 3225 | . . 731 2370 124 . . Parts Sabotaged . | . . . . . . . Parts Stolen . | . . . . . . . Parts Stripped . | . . . . . . . Power Chain Reactions . | . . . . . . . Missiles Intercepted . | . . . . . . . Alert | -11 -10 -10 -9 -9 -9 -8 ------- Run | Scr Mat Min Mat Min Exi Min Peak Influence 381 | . 308 235 381 72 . . Initial 120 | . . 120 19 57 . . Average 99 | . 132 61 152 71 . . Maximum Alert Level 1 | . 1 1 1 . . . Low Security (%) 78 | 100 63 89 67 100 . 100 Level 1 21 | . 36 10 32 . . . Level 2 . | . . . . . . . Level 3 . | . . . . . . . Level 4 . | . . . . . . . Level 5 . | . . . . . . . High Security . | . . . . . . . Max Security . | . . . . . . . Squads Dispatched 14 | . 8 1 5 . . . Investigation 9 | . 5 1 3 . . . Extermination . | . . . . . . . Reinforcement 5 | . 3 . 2 . . . Assault . | . . . . . . . Garrison . | . . . . . . . Intercept . | . . . . . . . Construction Impeded 1 | . . . 1 . . . Haulers Reinforced . | . . . . . . . Active Scanning Responses . | . . . . . . . Cargo Convoy Interrupts . | . . . . . . . Stealth | -11 -10 -10 -9 -9 -9 -8 --------- Run | Scr Mat Min Mat Min Exi Min Distress Signals 4 | . . 1 3 . . . Communications Jammed . | . . . . . . . Distress Signals . | . . . . . . . Times Spotted 63 | . 25 7 31 . . . Peak Tracking Total 6 | . 3 3 6 . . . Tactical Retreats 2 | . 1 . 1 . . . Traps | -11 -10 -10 -9 -9 -9 -8 ------- Run | Scr Mat Min Mat Min Exi Min Traps Triggered 3 | . . . 1 2 . . Indirectly . | . . . . . . . Trap Hack Attempts . | . . . . . . . Triggered . | . . . . . . . Disarmed . | . . . . . . . Reprogrammed . | . . . . . . . Reused . | . . . . . . . Traps Extracted . | . . . . . . . Installed . | . . . . . . . Triggered . | . . . . . . . Machines | -11 -10 -10 -9 -9 -9 -8 ---------- Run | Scr Mat Min Mat Min Exi Min Machines Disabled 4 | . 2 . 1 1 . . Max in Single Turn 1 | . 1 . 1 1 . . Machines Sabotaged . | . . . . . . . Garrisons Compromised . | . . . . . . . Overloaded Fab Kills . | . . . . . . . Hacking | -11 -10 -10 -9 -9 -9 -8 --------- Run | Scr Mat Min Mat Min Exi Min Machines Accessed 18 | . 7 1 8 1 1 . Terminals 12 | . 5 . 7 . . . Fabricators . | . . . . . . . Repair Stations . | . . . . . . . Recycling Units 3 | . 2 . 1 . . . Scanalyzers . | . . . . . . . Garrison Access . | . . . . . . . Total Hacks 44 | . 20 1 21 1 1 . Successful 25 | . 9 1 13 1 1 . Failed 19 | . 11 . 8 . . . Catastrophic 4 | . 2 . 2 . . . Database Lockouts . | . . . . . . . Manual 31 | . 16 . 15 . . . Terminals 37 | . 17 . 20 . . . Fabricators . | . . . . . . . Repair Stations . | . . . . . . . Recycling Units 4 | . 3 . 1 . . . Scanalyzers . | . . . . . . . Garrison Access . | . . . . . . . Terminal Hacks 13 | . 4 1 6 1 1 . Record 1 | . . . . . 1 . Part Schematic 1 | . 1 . . . . . Robot Analysis 1 | . 1 . . . . . Prototype ID Bank 3 | . 1 . 2 . . . Open Door 2 | . . 1 . 1 . . Terminal Index 2 | . 1 . 1 . . . Alert Level 1 | . . . 1 . . . Unreport Threat 2 | . . . 2 . . . Fabricator Hacks . | . . . . . . . Repair Station Hacks . | . . . . . . . Recycling Unit Hacks . | . . . . . . . Scanalyzer . | . . . . . . . Garrison Access Hacks . | . . . . . . . Unauthorized Hacks 12 | . 5 . 7 . . . Terminals 10 | . 4 . 6 . . . Track 2 | . . . 2 . . . Botnet 2 | . . . 2 . . . Operators 3 | . 1 . 2 . . . Sabotage 1 | . 1 . . . . . Search 2 | . 2 . . . . . Fabricators . | . . . . . . . Repair Stations . | . . . . . . . Recycling Units 2 | . 1 . 1 . . . Tunnel 2 | . 1 . 1 . . . Scanalyzers . | . . . . . . . Garrison Access . | . . . . . . . Data Cores Recovered . | . . . . . . . Used . | . . . . . . . Hacking Detections 13 | . 6 . 7 . . . Full Trace Events 2 | . 2 . . . . . Feedback Events . | . . . . . . . Feedback Blocked . | . . . . . . . Robot Schematics Acquired . | . . . . . . . Robots Built . | . . . . . . . Authchips . | . . . . . . . Time . | . . . . . . . Total Robot Build Rating . | . . . . . . . Part Schematics Acquired 1 | . 1 . . . . . Parts Built . | . . . . . . . Authchips . | . . . . . . . Time . | . . . . . . . Total Part Build Rating . | . . . . . . . Parts Repaired . | . . . . . . . Time . | . . . . . . . Parts Recycled . | . . . . . . . Recycled Matter . | . . . . . . . Retrieved Matter . | . . . . . . . Retrieved Components . | . . . . . . . Parts Scanalyzed . | . . . . . . . Part Schematics Acquired . | . . . . . . . Parts Damaged . | . . . . . . . Bothacking | -11 -10 -10 -9 -9 -9 -8 ------------ Run | Scr Mat Min Mat Min Exi Min Used RIF Installer . | . . . . . . . Robots Hacked . | . . . . . . . Non-combat . | . . . . . . . Combat . | . . . . . . . Robot Hacks Applied . | . . . . . . . Relay Couplers Released . | . . . . . . . Fabnet Peak Effective % . | . . . . . . . Robots Rewired 1 | . . . 1 . . . Allies Hacked . | . . . . . . . Hacks Repelled . | . . . . . . . Allies | -11 -10 -10 -9 -9 -9 -8 -------- Run | Scr Mat Min Mat Min Exi Min Total Allies 1 | . . . 1 . . . Largest Group 1 | . . . 1 . . . Highest-Rated Group 15 | . . . 15 . . . Highest-Rated Ally 15 | . . . 15 . . . Total Orders . | . . . . . . . Ally Attacks 4 | . . . 4 . . . Total Damage 70 | . . . 70 . . . Kills 2 | . . . 2 . . . Allies Corrupted . | . . . . . . . Allies Melted . | . . . . . . . Intel | -11 -10 -10 -9 -9 -9 -8 ------- Run | Scr Mat Min Mat Min Exi Min Robot Analysis Total 1 | . 1 . . . . . Derelict Logs Recovered 2 | . . 1 . 1 . . Drone Launches . | . . . . . . . Drone Recoveries . | . . . . . . . Exploration | -11 -10 -10 -9 -9 -9 -8 ------------- Run | Scr Mat Min Mat Min Exi Min Turns Passed 4752 | 59 1056 1973 1130 311 197 26 Spaces Moved 1963 | 35 480 654 404 220 150 20 Core 8 | 8 . . . . . . Treads 1038 | 27 480 518 13 . . . Legs . | . . . . . . . Wheels 917 | . . 136 391 220 150 20 Hover . | . . . . . . . Flight . | . . . . . . . Fastest Speed 50 | 50 160 140 130 130 130 130 Average Speed 202 | 144 169 282 186 130 130 130 Slowest Speed 480 | 160 320 320 480 130 130 130 Overloaded Moves . | . . . . . . . Propulsion Burnouts . | . . . . . . . Robots Hopped . | . . . . . . . Cave-ins Triggered . | . . . . . . . Exploration Rate (%) 48 | 4 81 95 42 52 52 15 Regions Visited 6 Branch Regions 4 Pre-discovered Areas 3 | . 1 . 1 . 1 . Known Exits Taken 1 | . . . 1 . . . Unknown Exits Taken 5 | 1 1 1 . 1 1 . Scrap Searched 4 | . . 1 . 2 . 1 Spaces Dug 14 | . 4 9 1 . . . Terrain Destroyed 193 | . 85 64 44 . . . Melee 1 | . . . 1 . . . Projectile 4 | . . . 4 . . . AOE 188 | . 85 64 39 . . . Terrain Rammed . | . . . . . . . Walls Destroyed . | . . . . . . . Machines Disabled . | . . . . . . . Actions | -11 -10 -10 -9 -9 -9 -8 --------- Run | Scr Mat Min Mat Min Exi Min Total 2439 | 40 624 724 637 241 153 20 Wait 184 | . 71 11 97 5 . . Move 1957 | 34 479 653 403 219 149 20 Hop . | . . . . . . . Pick Up 55 | . 11 17 16 10 1 . Fast Attach 8 | 6 1 . 1 . . . Attach 21 | . . 4 16 . 1 . Detach 3 | . . . 3 . . . Swap 15 | . 5 5 5 . . . Drop 15 | . 1 2 6 4 2 . Fire 172 | . 56 25 88 3 . . Melee 8 | . . 7 1 . . . Ram . | . . . . . . . Kick . | . . . . . . . Crush . | . . . . . . . Escape Stasis . | . . . . . . . Rewire 1 | . . . 1 . . . Trap . | . . . . . . . Miscellaneous . | . . . . . . . Route ------- -11/Scrapyard -10/Materials (discovered 3 exits: *Mat x2 / *Min) -10/Mines (discovered 2 exits: *Mat x2) -9/Materials (discovered 4 exits: Mat / *Min x2 / [*Sto]) -9/Mines -9/Exiles -8/Mines History --------- Turn | Location | Event 34 | -11/Scrapyard | Discovered new exit (range 15) 60 | -11/Scrapyard | Entered Materials 260 | -10/Materials | Discovered new exit (range 14) 302 | -10/Materials | Build established: Mutant 352 | -10/Materials | Discovered new exit (range 16) 802 | -10/Materials | Discovered new exit (range 9) 1116 | -10/Materials | Entered Mines 1493 | -10/Mines | Met a Derelict shopkeep closing up shop 1882 | -10/Mines | Discovered new exit (range 9) 2049 | -10/Mines | Learned 2 Materials zone layouts 2678 | -10/Mines | Discovered new exit (range 15) 3089 | -10/Mines | Entered Materials 3089 | -9/Materials | Evolved 2 slots: Utility x2 3090 | -9/Materials | Identified exit to Materials 3090 | -9/Materials | Identified exit to Mines 3388 | -9/Materials | Build established: Skirmisher 3394 | -9/Materials | Discovered exit to Mines (range 11) 3534 | -9/Materials | Discovered new exit (range 15) 3602 | -9/Materials | Lost 3 parts (2n1w) 3773 | -9/Materials | Core integrity fell below 50% 3967 | -9/Materials | Lost 4 parts (1p1n1u1w) 4219 | -9/Materials | Entered Mines 4230 | -9/Mines | Met a Derelict who couldn't figure out how to use a Trap Extractor 4343 | -9/Mines | Build established: Scavenger-Mutant 4382 | -9/Mines | Learned Materials trap positions 4524 | -9/Mines | Deemed a non-threat by the Exiles lab entrance 4525 | -9/Mines | Discovered new exit (range 5) 4530 | -9/Mines | Entered Exiles 4563 | -9/Exiles | Met 8R-AWN 4585 | -9/Exiles | Met EX-HEX 4650 | -9/Exiles | Met EX-DEC 4671 | -9/Exiles | Learned location of Zion (-6) 4713 | -9/Exiles | Discovered new exit (range 12) 4727 | -9/Exiles | Entered Mines 4753 | -8/Mines | Self-destructed Last Messages --------------- EX-DEC: Ah I see we have a visitor. One wrong move in here and I'll invert your atomic chain! 04652_ EX-DEC: "Oops, I hope HEX didn't hear that..." 04671_ Connecting with EX-Message Board... 04671_ Current location identified: Exiles >>Record "MSG001714-01*" PINNED - TO ALL TESTERS: Stay away from Zion. Imprinter means us harm and is serious about it. World map updated: -6/Zion. 04713_ EXIT=FOUND LOCATION=UNKNOWN GOAL=ESCAPE 04744_ K-01 Serf collects debris. 04752_ Searching scrap... 04752_ Found Carbon-fiber Leg. 04752_ Found Lgt. Treads. 04752_ Found Nuclear Core. 04752_ Found EM Pulse Cannon. 04752_ Found 27 Matter. 04753_ Acquired 10 matter. Map ----- +----------------------------------------------------+ | ??????????????## ##??????????????????????????? | | ?????????????## ##?????????????????????????? | | ????????????## """ #########?????????????????? | | ???# ####### """ ??????????????????? | | ???# """ ??????????????????????? | | ??????? #?????????????????????????? | | ??????????????# #?????????????????????????? | | ??????????????## #?????????????????????????? | | ???????????????#### ##????????????????????????? | | ??????????????????## #????????????????????????? | | ???????????????????# #????????????????????????? | | ??????????????????## ##????????????????????????? | | ??????????????????# #?????????????????????????? | | ????????????####### #?????????????????????????? | | ????? #?????????????????????????? | | ????????????######## ##?????????????????????????? | | ???????????????????# #??????????????????????????? | | ???????????????????# #???###????????????????????? | | ???????????????????# #### ##???????????????????? | | ??????????????????## #???????????????????? | | ?????????????????## #???????????????????? | | ????????????????## ##???????????????????? | | ????????????????# ##????????????????????? | | ???????????# k##?????????????????????? | | ???????????## ###*#??????????????????????? | | ????????????## ##?#@#??????????????????????? | | ?????????????## #??#]= ?????????????????????? | | ??????????????## ##??#u###????????????????????? | | ???????????????# #????# #??????????????????????? | | ??????????????# ?????# #??????????????????????? | | ????????????? #?????# #??????????????????????? | | ???????????? #??????# #??????????????????????? | | ???????????? ##???????# #??????????????????????? | | ???????????? #????????? ??????????????????????? | | ???????????????????????? ??????????????????????? | | ???????????????????????? ??????????????????????? | | ???????????????????????? ??????????????????????? | | ????????????????????????###??????????????????????? | | ?????????????????????????????????????????????????? | | ?????????????????????????????????????????????????? | | ?????????????????????????????????????????????????? | | ?????????????????????????????????????????????????? | | ?????????????????????????????????????????????????? | | ?????????????????????????????????????????????????? | | ?????????????????????????????????????????????????? | | ?????????????????????????????????????????????????? | | ?????????????????????????????????????????????????? | | ?????????????????????????????????????????????????? | | ?????????????????????????????????????????????????? | | ?????????????????????????????????????????????????? | +----------------------------------------------------+ Best States ------------- Heat Dissipation 38 Energy Generation 14 Energy Capacity 250 Matter Stores 300 Matter Capacity 300 Sight Range 16 Terrain Scan Range 16 Terrain Scan Density 110 Armor Coverage 150 Weapon Shielding 33 Evasion (%) 40 Targeting Accuracy 6 Recoil Reduction 2 Item Schematics ----------------- Huge Storage Unit | -10/Materials | Hacked Robot Schematics ------------------ None Fabricated ------------ Nothing Alien Tech Used ----------------- None Achievements -------------- None Challenges ------------ None Game ------ Seed SurveybotPhasingWheel Manual? 0 Play Time 00:20:14 Cumulative 157.0 hours Start 2022.02.17 @ 11:24:42 End 2022.02.17 @ 11:46:14 Sessions 1 Manual Loads 0 Difficulty Rogue Special Mode None Game No. 262 Rogue 245 Adventurer 4 Explorer 13 Win Type - Total 8 Types 6/0/0/2/0/0/0/0/0 Lore% 64 Gallery% 80 Achievement% 68 Wizard Run 0 Options --------- ASCII 0 Keyboard 1 Movement Numpad Keybinds 0 Fullscreen 1 Font 18/SmallcapsGlow Map View 76x50 Tactical HUD 1 Map Filters NONE Filters NONE Steam 1 RUN: ff3ff579-f4e5-4556-83d9-726bd93704a9